Cogmind - Beta 10.2 --- EXPLORER MODE // 2021.02.12 @ 09:11:00 Player: Analote Result: Destroyed by G-50 Soldier with Heavy Laser Performance ------------- Evolutions (4) 2000 Regions Visited (7) 1400 Robots Destroyed (36) 180 Value Destroyed (1226) 1226 Prototype IDs (1) 20 Alien Tech Used (0) 0 Bonus (-15) -15 TOTAL SCORE: 4811 Bonus ------- Follower Combat Kills 25 Friendly Fire -40 Cogmind --------- Core Integrity 0/850 Matter 296/300 Energy 100/100 System Corruption 3% Temperature Cool (9) Movement Core (50) Location -6/Factory Parts ------- > --- POWER (3) -------- (None) > --- PROPULSION (7) --- (None) > --- UTILITY (4) ------ (None) > --- WEAPON (2) ------- (None) > --- INVENTORY (4) ---- Drone Bay (2/2) Improved EM Pulse Cannon Peak State ------------ > --- POWER ------------ Micro Nuclear Core Micro Nuclear Core Light Angular Momentum Engine > --- PROPULSION ------- Flight Unit VTOL Module Cesium-ion Thruster Cesium-ion Thruster Xenon Bombardment Thruster Xenon Bombardment Thruster Xenon Bombardment Thruster > --- UTILITY ---------- Heat Sink Compact Battery Advanced Weight Redist. System Advanced Weight Redist. System > --- WEAPON ----------- Heavy Plasma Cannon Heavy Machine Gun > --- INVENTORY -------- Improved EM Pulse Cannon [Rating: 54] Favorites ----------- Power Micro Nuclear Core Engine Reinforced Ion Engine Power Core Micro Nuclear Core Propulsion Flight Unit Leg Aluminum Leg Hover Unit Hover Unit Flight Unit Flight Unit Utility Signal Interpreter Device Heat Sink Storage Medium Storage Unit Processor Signal Interpreter Weapon Light EM Pulse Cannon Energy Gun Shock Rifle Energy Cannon Light EM Pulse Cannon Ballistic Gun Assault Rifle Ballistic Cannon Light Cannon Slashing Weapon Mining Claw Build | -11 -10 -10 -9 -9 -8 -7 -6 ------- Run | Scr Mat Min Mat Min Mat Fac Fac Slots Evolved 9 | . 1 . 2 . 2 2 2 Power 2 | . . . . . 1 1 . Propulsion 5 | . . . 2 . 1 1 1 Utility 2 | . 1 . . . . . 1 Weapon . | . . . . . . . . Parts Attached 58 | 7 10 1 2 . 7 18 13 Power 13 | 1 1 . . . 2 6 3 Engine 8 | 1 1 . . . 2 2 2 Core 5 | . . . . . . 4 1 Reactor . | . . . . . . . . Propulsion 19 | 2 6 . 2 . 1 5 3 Treads . | . . . . . . . . Leg 2 | 2 . . . . . . . Wheel . | . . . . . . . . Hover 3 | . 3 . . . . . . Flight 14 | . 3 . 2 . 1 5 3 Utility 13 | 2 1 . . . 2 6 2 Device 9 | . . . . . 2 5 2 Storage 3 | 1 1 . . . . 1 . Processor 1 | 1 . . . . . . . Hackware . | . . . . . . . . Protection . | . . . . . . . . Artifact . | . . . . . . . . Weapon 13 | 2 2 1 . . 2 1 5 Energy Gun 3 | . . . . . . . 3 Energy Cannon 3 | . . . . . 1 1 1 Ballistic Gun 5 | 2 . 1 . . 1 . 1 Ballistic Cannon 1 | . 1 . . . . . . Launcher . | . . . . . . . . Special Weapon . | . . . . . . . . Impact Weapon . | . . . . . . . . Slashing Weapon 1 | . 1 . . . . . . Piercing Weapon . | . . . . . . . . Special Melee Weapon . | . . . . . . . . Unidentified Prototypes 1 | . . . . . . . 1 Parts Lost 26 | . . . . . . 4 22 Power 5 | . . . . . . . 5 Propulsion 11 | . . . . . . 4 7 Utility 5 | . . . . . . . 5 Weapon 5 | . . . . . . . 5 Highest Loss Streak 15 | . . . . . . 2 15 Average Slot Usage (%) 88 | . 86 87 90 90 95 91 81 Engine 8 | . 12 12 10 10 11 8 3 Core 5 | . . . . . . 9 10 Hover 3 | . 19 . . . . . . Flight 31 | . 2 25 40 40 41 37 36 Device 9 | . . . . . 12 16 14 Storage 6 | . 11 12 10 10 3 1 5 Processor 5 | . 12 12 10 10 8 3 . Energy Cannon 3 | . . . . . 5 7 3 Ballistic Gun 6 | . 11 4 10 10 8 6 2 Ballistic Cannon 3 | . 2 12 10 10 2 . . Slashing Weapon 2 | . 9 7 . . . . . Naked Turns 10 | . . . . . . . 10 Heaviest Build 37 | 14 23 23 23 23 25 37 37 Greatest Support 51 | 20 20 8 16 16 20 43 51 Greatest Overweight (x) 2 | . 2 2 1 1 1 1 1 Average Overweight (x) . | . . 2 1 1 . . . Largest Inventory Capacity 8 | 8 8 8 8 8 8 4 4 Average Capacity 5 | 5 7 8 8 8 5 4 4 Most Carried 6 | 3 6 3 3 3 3 4 3 Average Carried 1 | . 1 3 1 3 . 1 1 Final Capacity 8 | 8 8 8 8 8 4 4 4 Final Carried 3 | . 3 3 3 3 2 3 2 Class Distribution -------------------- 77% | Hacker-Mutant 22% | Hacker-Sprinter Dominant Class ---------------- Hacker-Mutant | -10/Materials Hacker-Mutant | -10/Mines Hacker-Mutant | -9/Materials Hacker-Mutant | -9/Mines Hacker-Mutant | -8/Materials Hacker-Mutant | -7/Factory Hacker-Sprinter | -6/Factory Resources | -11 -10 -10 -9 -9 -8 -7 -6 ----------- Run | Scr Mat Min Mat Min Mat Fac Fac Matter Collected 1063 | 229 99 118 90 84 54 275 114 Remotely . | . . . . . . . . Salvage Created 1279 | . 116 45 185 90 88 496 259 Parts 73 | . 7 2 17 2 10 21 14 Haulers Intercepted . | . . . . . . . . Recyclers Shooed . | . . . . . . . . Parts Field Recycled . | . . . . . . . . Retrieved Matter . | . . . . . . . . Parts Self-Destructed . | . . . . . . . . Prevented . | . . . . . . . . Kills | -11 -10 -10 -9 -9 -8 -7 -6 ------- Run | Scr Mat Min Mat Min Mat Fac Fac Combat Hostiles Destroyed 28 | . 2 1 5 2 5 9 4 Guns 15 | . 2 1 3 1 3 3 2 Cannons 10 | . . . 2 1 2 3 2 AOE 2 | . . . . . . 2 . Classes Destroyed 8 | . 3 . 3 . . 1 1 Worker 2 | . 1 . 1 . . . . Operator 2 | . . . 1 . . 1 . Watcher 4 | . 1 . 1 . . 1 1 Swarmer 8 | . . . 2 . 5 1 . Grunt 15 | . 2 1 2 2 . 6 2 Brawler 1 | . . . . . . 1 . Sentry 3 | . . . 1 . . 1 1 Programmer 1 | . . . . . . . 1 Best Kill Streak 6 | . 2 1 6 2 3 3 2 Combat Bots Only 4 | . 2 1 4 2 3 3 2 Max Kills in Single Turn 2 | . 1 1 2 1 1 1 1 Gunslinging . | . . . . . . . . Exploded 1 | . . . . . . 1 . Melee . | . . . . . . . . Uniques/NPCs Destroyed . | . . . . . . . . Combat | -11 -10 -10 -9 -9 -8 -7 -6 -------- Run | Scr Mat Min Mat Min Mat Fac Fac Damage Taken 2421 | . 93 31 139 14 56 333 1755 Core 955 | . 7 . 29 7 8 42 862 Absorbed by Shields . | . . . . . . . . Core Remaining (%) 96 | 100 . 97 . 91 98 94 . Volleys Fired 112 | . 10 5 17 5 7 26 42 Largest 2 | . 2 2 2 2 2 2 2 Hottest 125 | . 40 55 55 55 81 125 125 Shots Fired 200 | . 16 8 34 10 14 51 67 Gun 97 | . 13 3 17 5 7 19 33 Cannon 103 | . 3 5 17 5 7 32 34 Launcher . | . . . . . . . . Special . | . . . . . . . . Kinetic 109 | . 16 8 34 10 7 19 15 Thermal 14 | . . . . . . . 14 Explosive . | . . . . . . . . Electromagnetic 77 | . . . . . 7 32 38 Robot Hit Streak 20 | . 7 9 12 5 7 20 18 Robot Miss Streak 2 | . 1 1 1 2 1 1 2 Penetration Max . | . . . . . . . . Secondary Targets 1 | . . . . . . . 1 Max Gunslinging Chain 1 | . . . . . . . 1 Shots Hit Robots 160 | . 18 4 25 6 9 44 54 Core Hits 74 | . 6 1 13 4 5 18 27 Critical Hits 2 | . 1 . 1 . . . . Critical Kills 1 | . 1 . . . . . . Critical Parts Destroyed 1 | . . . 1 . . . . Melee Attacks 7 | . 7 . . . . . . Impact . | . . . . . . . . Slashing 7 | . 7 . . . . . . Piercing . | . . . . . . . . Sneak Attacks 2 | . 2 . . . . . . Combat Hostiles . | . . . . . . . . Follow-up Attacks . | . . . . . . . . Damage Inflicted 3181 | . 360 53 362 117 211 1063 1015 Guns 1250 | . 123 28 197 63 81 306 452 Cannons 1334 | . 50 25 165 54 118 595 327 Explosions 335 | . . . . . . 154 181 Melee 187 | . 187 . . . . . . Ramming 75 | . . . . . 12 8 55 Kinetic 1273 | . 173 53 362 117 81 306 181 Thermal 562 | . . . . . . 154 408 Explosive . | . . . . . . . . Electromagnetic 1084 | . . . . . 118 595 371 Impact . | . . . . . . . . Slashing 187 | . 187 . . . . . . Piercing . | . . . . . . . . Highest Corruption 3 | . . . . . . 1 3 Average Corruption 1 | . . . . . . 1 1 Corruption Purged . | . . . . . . . . Effects 2 | . . . . . . . 2 Message Errors 1 | . . . . . . . 1 Targeting Errors 1 | . . . . . . . 1 Overload Shots . | . . . . . . . . Overflow Damage 176 | . 32 . . . . . 144 Projectiles 30 | . . . . . . . 30 Explosions 114 | . . . . . . . 114 Melee 32 | . 32 . . . . . . Knockbacks 2 | . 1 . 1 . . . . Impact . | . . . . . . . . Kinetic 2 | . 1 . 1 . . . . Secondary . | . . . . . . . . Self-Inflicted Damage 290 | . . . . . 6 4 280 Shots 5 | . . . . . . . 5 Rammed 19 | . . . . . 1 1 17 Targets Rammed 19 | . . . . . 1 1 17 Kicked . | . . . . . . . . Crushed . | . . . . . . . . Highest Temperature 640 | . 20 42 133 57 135 68 640 Average Temperature 100 | . 7 16 57 27 49 34 170 Received Heat Transfer 1161 | . 45 27 75 12 . 147 855 Effects 9 | . . . . . . . 9 Energy Bleed 1 | . . . . . . . 1 Interference 2 | . . . . . . . 2 Matter Decay 2 | . . . . . . . 2 Damage (major) 3 | . . . . . . . 3 Damage (core) 1 | . . . . . . . 1 Siege Activations . | . . . . . . . . Robots Corrupted 1 | . . . . . . 1 . Combat Hostiles 1 | . . . . . . 1 . Parts Fried 7 | . . . . . 1 1 5 Impact Corruptions . | . . . . . . . . Robots Melted . | . . . . . . . . Combat Hostiles . | . . . . . . . . Parts Melted . | . . . . . . . . Heat Transferred 650 | . . . . . . 100 550 Parts Sabotaged . | . . . . . . . . Parts Stolen . | . . . . . . . . Parts Stripped . | . . . . . . . . Power Chain Reactions 3 | . . . . . . 3 . Missiles Intercepted . | . . . . . . . . Alert | -11 -10 -10 -9 -9 -8 -7 -6 ------- Run | Scr Mat Min Mat Min Mat Fac Fac Peak Influence 334 | . 85 40 213 108 172 334 234 Initial 120 | . . 6 11 58 29 61 120 Average 89 | . 60 12 113 66 69 112 127 Maximum Alert Level 1 | . . . 1 . . 1 1 Low Security (%) 86 | 100 100 100 93 100 100 75 72 Level 1 13 | . . . 6 . . 24 27 Level 2 . | . . . . . . . . Level 3 . | . . . . . . . . Level 4 . | . . . . . . . . Level 5 . | . . . . . . . . High Security . | . . . . . . . . Max Security . | . . . . . . . . Squads Dispatched 8 | . . . 1 . . 4 3 Investigation 6 | . . . . . . 4 2 Extermination . | . . . . . . . . Reinforcement 2 | . . . 1 . . . 1 Assault . | . . . . . . . . Garrison . | . . . . . . . . Intercept . | . . . . . . . . Construction Impeded 1 | . . . . . . . 1 Haulers Reinforced . | . . . . . . . . Stealth | -11 -10 -10 -9 -9 -8 -7 -6 --------- Run | Scr Mat Min Mat Min Mat Fac Fac Distress Signals 3 | . . . 1 . 1 . 1 Communications Jammed . | . . . . . . . . Distress Signals . | . . . . . . . . Times Spotted 58 | . 6 2 7 2 9 16 16 Peak Tracking Total 5 | . 2 2 4 2 4 4 5 Tactical Retreats 3 | . . . . . . 1 2 Traps | -11 -10 -10 -9 -9 -8 -7 -6 ------- Run | Scr Mat Min Mat Min Mat Fac Fac Traps Triggered 6 | . 2 . . . . 3 1 Indirectly . | . . . . . . . . Trap Hack Attempts . | . . . . . . . . Triggered . | . . . . . . . . Disarmed . | . . . . . . . . Reprogrammed . | . . . . . . . . Reused . | . . . . . . . . Traps Extracted . | . . . . . . . . Installed . | . . . . . . . . Triggered 1 | . . . . . . 1 . Machines | -11 -10 -10 -9 -9 -8 -7 -6 ---------- Run | Scr Mat Min Mat Min Mat Fac Fac Machines Disabled 9 | . . 1 . . 2 . 6 Max in Single Turn 5 | . . 1 . . 1 . 5 Machines Sabotaged . | . . . . . . . . Garrisons Compromised . | . . . . . . . . Overloaded Fab Kills . | . . . . . . . . Fab Network Shutdowns . | . . . . . . . . Hacking | -11 -10 -10 -9 -9 -8 -7 -6 --------- Run | Scr Mat Min Mat Min Mat Fac Fac Machines Accessed 14 | . 3 . 1 . 2 5 3 Terminals 9 | . 2 . 1 . 1 4 1 Fabricators 1 | . . . . . . . 1 Repair Stations . | . . . . . . . . Recycling Units 4 | . 1 . . . 1 1 1 Scanalyzers . | . . . . . . . . Garrison Access . | . . . . . . . . Total Hacks 39 | . 11 . 2 . 2 16 8 Successful 31 | . 9 . 1 . 2 12 7 Failed 8 | . 2 . 1 . . 4 1 Catastrophic . | . . . . . . . . Database Lockouts . | . . . . . . . . Manual . | . . . . . . . . Terminals 27 | . 7 . 2 . 1 13 4 Fabricators 1 | . . . . . . . 1 Repair Stations . | . . . . . . . . Recycling Units 11 | . 4 . . . 1 3 3 Scanalyzers . | . . . . . . . . Garrison Access . | . . . . . . . . Terminal Hacks 23 | . 5 . 1 . 1 12 4 Record 14 | . 4 . . . 1 6 3 Part Schematic 6 | . . . . . . 6 . Robot Analysis 2 | . 1 . 1 . . . . Level Access Points 1 | . . . . . . . 1 Fabricator Hacks 1 | . . . . . . . 1 Load Schematic 1 | . . . . . . . 1 Repair Station Hacks . | . . . . . . . . Recycling Unit Hacks 7 | . 4 . . . 1 . 2 Recycle Component 4 | . 2 . . . 1 . 1 Process 2 | . 1 . . . . . 1 Report Inventory 1 | . 1 . . . . . . Scanalyzer . | . . . . . . . . Garrison Access Hacks . | . . . . . . . . Unauthorized Hacks . | . . . . . . . . Terminals . | . . . . . . . . Fabricators . | . . . . . . . . Repair Stations . | . . . . . . . . Recycling Units . | . . . . . . . . Scanalyzers . | . . . . . . . . Garrison Access . | . . . . . . . . Data Cores Recovered 1 | . . . . . . 1 . Used . | . . . . . . . . Hacking Detections 10 | . 1 . 1 . 1 4 3 Full Trace Events 6 | . . . . . . 4 2 Feedback Events 1 | . . . . . . 1 . Corruption 1 | . . . . . . 1 . Feedback Blocked . | . . . . . . . . Robot Schematics Acquired . | . . . . . . . . Robots Built . | . . . . . . . . Matter . | . . . . . . . . Time . | . . . . . . . . Total Robot Build Rating . | . . . . . . . . Part Schematics Acquired 6 | . . . . . . 6 . Parts Built . | . . . . . . . . Matter . | . . . . . . . . Time . | . . . . . . . . Total Part Build Rating . | . . . . . . . . Parts Repaired . | . . . . . . . . Time . | . . . . . . . . Parts Recycled 4 | . 2 . . . 1 . 1 Recycled Matter 129 | . 96 . . . . . 33 Retrieved Matter . | . . . . . . . . Retrieved Components . | . . . . . . . . Parts Scanalyzed . | . . . . . . . . Part Schematics Acquired . | . . . . . . . . Parts Damaged . | . . . . . . . . Bothacking | -11 -10 -10 -9 -9 -8 -7 -6 ------------ Run | Scr Mat Min Mat Min Mat Fac Fac Used RIF Installer . | . . . . . . . . Robots Hacked . | . . . . . . . . Non-combat . | . . . . . . . . Combat . | . . . . . . . . Robot Hacks Applied . | . . . . . . . . Relay Couplers Released . | . . . . . . . . Robots Rewired . | . . . . . . . . Allies Hacked . | . . . . . . . . Hacks Repelled . | . . . . . . . . Allies | -11 -10 -10 -9 -9 -8 -7 -6 -------- Run | Scr Mat Min Mat Min Mat Fac Fac Total Allies 1 | . . 1 . . . . . Largest Group 1 | . . 1 . . . . . Highest-Rated Group 31 | . . 31 . . . . . Highest-Rated Ally 31 | . . 31 . . . . . Total Orders . | . . . . . . . . Ally Attacks 10 | . . 10 . . . . . Total Damage 147 | . . 147 . . . . . Kills 1 | . . 1 . . . . . Allies Corrupted . | . . . . . . . . Allies Melted . | . . . . . . . . Intel | -11 -10 -10 -9 -9 -8 -7 -6 ------- Run | Scr Mat Min Mat Min Mat Fac Fac Robot Analysis Total 2 | . 1 . 1 . . . . Derelict Logs Recovered . | . . . . . . . . Drone Launches . | . . . . . . . . Drone Recoveries . | . . . . . . . . Exploration | -11 -10 -10 -9 -9 -8 -7 -6 ------------- Run | Scr Mat Min Mat Min Mat Fac Fac Turns Passed 2591 | 59 425 158 101 309 215 713 611 Spaces Moved 2577 | 43 292 64 42 265 183 936 752 Core 12 | 9 . . . . . . 3 Treads . | . . . . . . . . Legs 70 | 34 36 . . . . . . Wheels . | . . . . . . . . Hover 237 | . 237 . . . . . . Flight 2258 | . 19 64 42 265 183 936 749 Fastest Speed 22 | 50 116 197 111 111 28 25 22 Average Speed 73 | 105 121 197 111 111 94 61 38 Slowest Speed 197 | 120 197 197 111 111 108 117 114 Overloaded Moves . | . . . . . . . . Propulsion Burnouts . | . . . . . . . . Robots Hopped 5 | . . . . . . . 5 Cave-ins Triggered . | . . . . . . . . Exploration Rate (%) 24 | 3 45 26 7 55 23 25 15 Regions Visited 7 Branch Regions 2 Pre-discovered Areas . | . . . . . . . . Known Exits Taken 7 | 1 1 1 1 1 1 1 . Unknown Exits Taken . | . . . . . . . . Scrap Searched . | . . . . . . . . Spaces Dug 3 | . 3 . . . . . . Terrain Destroyed 78 | . 3 . . . . 7 68 Melee 3 | . 3 . . . . . . Projectile 5 | . . . . . . . 5 AOE 70 | . . . . . . 7 63 Terrain Rammed . | . . . . . . . . Walls Destroyed . | . . . . . . . . Machines Disabled . | . . . . . . . . Actions | -11 -10 -10 -9 -9 -8 -7 -6 --------- Run | Scr Mat Min Mat Min Mat Fac Fac Total 3042 | 56 333 88 62 269 210 1024 1000 Wait 209 | . . 19 . . . 23 167 Move 2560 | 42 291 63 41 264 182 935 742 Hop 5 | . . . . . . . 5 Pick Up 52 | 7 10 . 2 . 7 15 11 Fast Attach . | . . . . . . . . Attach 32 | 7 1 . 2 . 3 10 9 Detach 1 | . . . . . . 1 . Swap 27 | . 9 1 . . 4 8 5 Drop 18 | . 5 . . . 6 5 2 Fire 112 | . 10 5 17 5 7 26 42 Melee 7 | . 7 . . . . . . Ram 19 | . . . . . 1 1 17 Kick . | . . . . . . . . Crush . | . . . . . . . . Escape Stasis . | . . . . . . . . Rewire . | . . . . . . . . Trap . | . . . . . . . . Miscellaneous . | . . . . . . . . Route ------- -11/Scrapyard -10/Materials (discovered 2 exits: *Mat / *Min) -10/Mines -9/Materials -9/Mines -8/Materials -7/Factory -6/Factory (discovered 4 exits: Fac x4) History --------- Turn | Location | Event 39 | -11/Scrapyard | Identified exit to Materials 39 | -11/Scrapyard | Discovered exit to Materials (range 12) 60 | -11/Scrapyard | Entered Materials 60 | -10/Materials | Evolved 1 slot: Utility x1 222 | -10/Materials | Identified exit to Materials 222 | -10/Materials | Discovered exit to Materials (range 11) 309 | -10/Materials | Build established: Hacker-Mutant 430 | -10/Materials | Identified exit to Mines 430 | -10/Materials | Discovered exit to Mines (range 15) 485 | -10/Materials | Entered Mines 554 | -10/Mines | Received a Mining Laser from a helpful Derelict 619 | -10/Mines | Discovered exit to Materials (range 13) 643 | -10/Mines | Entered Materials 643 | -9/Materials | Evolved 2 slots: Propulsion x2 674 | -9/Materials | Identified exit to Mines 674 | -9/Materials | Discovered exit to Mines (range 15) 744 | -9/Materials | Entered Mines 1011 | -9/Mines | Identified exit to Materials 1011 | -9/Mines | Discovered exit to Materials (range 5) 1037 | -9/Mines | Found a hidden stash of uninstalled traps 1053 | -9/Mines | Entered Materials 1053 | -8/Materials | Evolved 2 slots: Power x1, Propulsion x1 1267 | -8/Materials | Identified exit to Factory 1267 | -8/Materials | Discovered exit to Factory (range 3) 1268 | -8/Materials | Entered Factory 1268 | -7/Factory | Evolved 2 slots: Power x1, Propulsion x1 1964 | -7/Factory | Identified exit to Factory 1964 | -7/Factory | Discovered exit to Factory (range 16) 1981 | -7/Factory | Entered another Factory area 1981 | -6/Factory | Evolved 2 slots: Propulsion x1, Utility x1 2254 | -6/Factory | Lost 6 parts (2p1n1u2w) 2298 | -6/Factory | Build established: Hacker-Sprinter 2481 | -6/Factory | Identified exit to Factory 2554 | -6/Factory | Core integrity fell below 50% 2578 | -6/Factory | Core integrity fell below 20% 2592 | -6/Factory | Destroyed by G-50 Soldier with Heavy Laser Last Messages --------------- 02585_ K-01 Serf collects debris. 02585_ U-05 Engineer lays Concrete. 02586_ Slammed into G-50 Soldier. 02586_ U-05 Engineer builds a Wall. 02586_ U-05 Engineer lays Concrete. 02587_ Slammed into G-50 Soldier. 02587_ U-05 Engineer builds a Wall. 02588_ Slammed into G-50 Soldier. 02588_ U-05 Engineer builds a Wall. 02589_ Slammed into G-50 Soldier. 02589_ K-01 Serf destroyed. 02589_ K-01 Serf collects debris. 02590_ Slammed into G-50 Soldier. 02590_ K-01 Serf collects debris. 02590_ U-05 Engineer lays Concrete. 02591_ Slammed into G-50 Soldier. 02591_ U-05 Engineer builds a Wall. 02591_ U-05 Engineer lays Concrete. 02592_ Slammed into G-50 Soldier. 02592_ R-10 Processor collects Wheel. Map ----- +----------------------------------------------------+ | ?????????????????????????????????????????????????? | | ?????????????????????????????????????????????????? | | ?????????????????????????????????????????????????? | | ?????????????????????????????????????????????????? | | ?????????????????????????????????????????????????? | | ?????????????????????????????????????????????????? | | ?????????????????????????????????????????????????? | | ?????????????????????????????????????????????????? | | ?????????????????????????????????????????????????? | | ??????????????????????????????????########???????? | | ??????????????????????????????????# #?####### | | ??????????????????????????????????# """## | | ??????????????????#???????????????# """## | | ????????????????### ???????? ? ?# """## | | ????????????????? ???????? ? ?# ## | | ?????????????????? ??????? ? ?# """## | | ??????????????????? ??????? ]?] ?# """## | | ???????????????????? ?????? ]? ?# """## | | ????????????????????? ????? ]? ?# ## | | ?????????????????????# #???? ? ?# """## | | ?????????????????????#k############ """## | | ?????????????????????# #! """## | | ?????????????????????# u # ## | | ?????????????????????# % R #+##+########### | | ?????????????????#####/ % R # | | ?????????????????# ; g@ g # | | ?????????????????###;# kt | | ???????????????????# # g # | | ???????????????????# # # | | ???????????????????# k ####+#####+##### | | ???????????????????# # #" # | | ???????????????????# u u# ! # !! | | ???????????????????# u # !! | | ???????????????????# ; ### ; """" # | | ???????????????????# ; """" # | | ???????????????????###### # #### """" # ! | | ????????????????????????#### ####??# """" # | | ???????????????????????????# #?????# # """" " | | ???????????????????????????###?????# ??# """" " | | ???????????????????????????????????# ?? ??# """" " | | ???????????????????????????????????????" ?# """" " | | ??????????????????????????????????????????# | | ??????????????????????????????????????????###?#### | | ?????????????????????????????????????????????????? | | ?????????????????????????????????????????????????? | | ?????????????????????????????????????????????????? | | ?????????????????????????????????????????????????? | | ?????????????????????????????????????????????????? | | ?????????????????????????????????????????????????? | | ?????????????????????????????????????????????????? | +----------------------------------------------------+ Best States ------------- Heat Dissipation 69 Energy Generation 38 Energy Capacity 690 Matter Stores 300 Matter Capacity 300 Sight Range 16 Terrain Scan Density 10 Additional Mass Support 18 Resistance: KI 35 Resistance: TH 35 Resistance: EX 35 Resistance: EM 35 Resistance: I 35 Resistance: S 35 Resistance: P 35 Evasion (%) 65 Offensive Hacking 20 Item Schematics ----------------- Kinecellerator | -7/Factory | Hacked Recoil Nullifier | -7/Factory | Hacked Angular Momentum Engine | -7/Factory | Hacked Cloaking Device | -7/Factory | Hacked Adv. Shield Generator | -7/Factory | Hacked Overload Amplifier | -7/Factory | Hacked Robot Schematics ------------------ None Fabricated ------------ Nothing Alien Tech Used ----------------- None Achievements -------------- Can't Catch Me Challenges ------------ None Game ------ Seed SwordMiniThrower Manual? 0 Play Time 00:34:51 Cumulative 9.0 hours Start 2021.02.12 @ 08:33:40 End 2021.02.12 @ 09:11:00 Sessions 1 Manual Loads 0 Difficulty Explorer Special Mode None Game No. 13 Rogue 0 Adventurer 0 Explorer 13 Win Type - Total 0 Types 0/0/0/0/0/0/0/0/0 Lore% 14 Gallery% 19 Achievement% 22 Wizard Run 0 Options --------- ASCII 0 Keyboard 0 Movement Mouse Keybinds 0 Fullscreen 2 Font 12/Terminus Map View 83x54 Tactical HUD 1 Map Filters NONE Filters NONE Steam 1 RUN: d1c7d803-cca9-4450-b1d9-3099f4209c4c